fUSD/lending_fUSD_20240708
["ID","MTS","AMOUNT","RATE_DAILY","PERIOD"]
[331439646,1720409530410,394.53,0.00010436,2]
[331439648,1720409633831,155.31553201,0.00011199,2]
[331439649,1720409635407,3127.52697787,0.00011199,2]
[331439650,1720409637495,155.17596108,0.00011199,2]
[331439651,1720409674085,176.81974045,0.00011199,2]
[331439653,1720409688606,329.01371023,0.00011199,2]
[331439654,1720409698270,155.15019104,0.00011199,2]
[331439655,1720409713925,1144.78406075,0.00011199,2]
[331439656,1720409729770,2173.63765864,0.00011199,2]
[331439657,1720409732732,2208.14335693,0.00011199,2]
[331439658,1720409733691,967.37479892,0.00011199,2]
[331439659,1720409747550,1269.24591868,0.00011199,2]
[331439660,1720409749614,900.60034637,0.00011199,2]
[331439661,1720409757566,1630.73333368,0.00011199,2]
[331439662,1720409765945,1274.14104001,0.00011199,2]
[331439666,1720409790819,483.68385979,0.00011199,2]
[331439668,1720409799558,837.05401959,0.00011199,2]
[331439669,1720409800753,721.36501093,0.00011199,2]
[331439670,1720409816140,161.7845757,0.00011199,2]
[331439671,1720409818566,459.78860943,0.00011199,2]
[331439673,1720409829318,459.78860943,0.00011199,2]
[331439674,1720409831198,364.58623105,0.00011199,2]
[331439675,1720409833110,205.50625995,0.00011199,2]
[331439676,1720409834594,201.25290954,0.00011199,2]
[331439677,1720409835779,420.20658043,0.00011199,2]
[331439678,1720409843473,163.998128,0.00011199,2]
[331439679,1720409849369,155.7441049,0.00011199,2]
[331439680,1720409849643,270.26721947,0.00011199,2]
[331439681,1720409862482,483.17362825,0.00011199,2]
[331439682,1720409865108,188.96581096,0.00011199,2]
[331439683,1720409868450,215.69180507,0.00011199,2]
[331439684,1720409868604,366.62612521,0.00011199,2]
[331439685,1720409870769,155.65823253,0.00011199,2]
[331439686,1720409871354,155.61061252,0.00011199,2]
[331439687,1720409878057,230.51884949,0.00011199,2]
[331439688,1720409882033,158.64100398,0.00011199,2]
[331439689,1720409883002,301.35667342,0.00011199,2]
[331439690,1720409883032,156.43640527,0.00011199,2]
[331439691,1720409887583,365.26443049,0.00011199,2]
[331439692,1720409889452,209.46146163,0.00011199,2]
[331439695,1720409893848,367.09986569,0.00011199,2]
[331439696,1720409894577,155.0,0.00011199,2]
[331439697,1720409918244,235.30745469,0.00011199,2]
[331439698,1720409918588,268.80031684,0.00011199,2]
[331439699,1720409924055,161.44879661,0.00011199,2]
[331439700,1720409924684,220.7400091,0.00011199,2]
[331439701,1720409936198,218.92295223,0.00011199,2]
[331439702,1720409945715,181.21427799,0.00011199,2]
[331439703,1720410047034,374.8,9.779e-05,2]
[331439704,1720410077126,155.94221528,0.00011199,2]
[331439705,1720410120179,440.79159944,0.00011199,2]
[331439706,1720410132893,661.7890404,0.00011199,2]
[331439707,1720410213534,413.27406791,0.00011199,2]
[331439709,1720410264368,155.59273728,0.00011199,2]
[331439710,1720410289562,163.96990497,0.00011199,2]
[331439711,1720410302251,414.53222395,0.00011199,2]
[331439712,1720410351804,205.82822042,0.00011199,2]
[331439715,1720410359492,230.40693352,0.00011199,2]
[331439716,1720410362390,329.01371023,0.00011199,2]
[331439717,1720410392827,329.01371023,0.00011199,2]
[331439723,1720410474740,263.08156258,0.00011199,2]
[331439743,1720410584126,-209.5,0.00011531,2]
[331439744,1720410584497,-250.0,0.00011549,2]
[331439745,1720410584528,-2058.16,0.00011575,2]
[331439746,1720410584559,-250.0,0.00011575,2]
[331439747,1720410584589,-500.0,0.00011581,2]
[331439748,1720410584622,-150.0,0.00011596,2]
[331439749,1720410584652,-2551.54,0.00011647,2]
[331439750,1720410584682,-2811.46543473,0.00011647,2]
[331439751,1720410584721,-8780.66543473,0.00011647,2]
[331439752,1720410584782,-2208.03189736,0.00011647,2]
[331439753,1720410609368,-1854.87,0.00011604,2]
[331439754,1720410609399,-7321.18269006,0.00011647,2]
[331439755,1720410609557,-9176.05269006,0.00011647,2]
[331439756,1720410609677,-1717.15221825,0.00011647,2]
[331439758,1720410623099,356.06,9.799e-05,2]
[331439761,1720410632519,-150.0,0.00011688,2]
[331439763,1720410632529,-185.74,0.00011692,2]
[331439765,1720410632539,-1000.49099749,0.00011692,2]
[331439767,1720410632551,-4907.71654017,0.00011692,2]
[331439769,1720410632563,-401.44091038,0.00011692,2]
[331439771,1720410632575,-3078.55932045,0.00011692,2]
[331439772,1720410632587,-708.08516281,0.00011692,2]
[331439773,1720410632599,-750.93154305,0.00011692,2]
[331439774,1720410632610,-3426.85226581,0.00011692,2]
[331439775,1720410632622,-9625.92325984,0.00011692,2]
[331439776,1720410632633,-641.323174,0.00011721,2]
[331439800,1720410637815,-358.676826,0.00011721,2]
[331439801,1720410637824,-171.36,0.00011728,2]
[331439802,1720410637834,-2135.08709411,0.000118,2]
[331439803,1720410637843,-178.22,0.00011855,2]
[331439804,1720410637853,-150.0,0.00011918,2]
[331439805,1720410637862,-216.60102943,0.00011934,2]
[331439806,1720410637898,-783.39897057,0.00011934,2]
[331439807,1720410637907,-258.9334,0.00011955,2]
[331439808,1720410637917,-499.99,0.00012043,2]
[331439809,1720410637927,-994.53849398,0.00012055,2]
[331439810,1720410637973,-24128.88150602,0.00012055,2]
[331439811,1720410637983,-356.06,0.00012063,2]
[331439812,1720410637992,-164.97,0.00012114,2]
[331439813,1720410638002,-45662.0,0.00012126,2]
[331439814,1720410638012,-164.97,0.00012174,2]
[331439815,1720410638022,-171.36,0.00012339,2]
[331439817,1720410638031,-150.0,0.00012607,2]
[331439819,1720410638041,-150.0,0.0001261,2]
[331439821,1720410638051,-150.0,0.00012617,2]
[331439823,1720410638061,-150.0,0.00012624,2]
[331439825,1720410638070,-150.0,0.00012637,2]
[331439827,1720410638080,-385.96925274,0.00012645,2]
[331439829,1720410638090,-150.0,0.00012648,2]
[331439831,1720410638100,-150.0,0.00012653,2]
[331439833,1720410638110,-150.0,0.00012665,2]
[331439835,1720410638119,-150.0,0.00012666,2]
[331439837,1720410638129,-150.0,0.00012673,2]
[331439839,1720410638141,-150.0,0.00012677,2]
[331439841,1720410638150,-150.0,0.0001268,2]
[331439843,1720410638159,-150.0,0.00012682,2]
[331439845,1720410638170,-150.0,0.00012682,2]
[331439847,1720410638179,-150.0,0.00012683,2]
[331439849,1720410638192,-150.0,0.00012696,2]
[331439851,1720410638202,-150.0,0.00012696,2]
[331439853,1720410638211,-150.0,0.00012701,2]
[331439855,1720410638220,-150.0,0.00012701,2]
[331439857,1720410638229,-150.0,0.00012703,2]
[331439859,1720410638240,-150.0,0.00012718,2]
[331439861,1720410638249,-150.0,0.00012724,2]
[331439862,1720410638259,-150.0,0.00012727,2]
[331439865,1720410638271,-155.47158257,0.00012729,2]
[331439867,1720410638282,-150.0,0.00012732,2]
[331439869,1720410638291,-150.0,0.00012736,2]
[331439871,1720410638301,-150.0,0.00012737,2]
[331439873,1720410638311,-1122.85937611,0.0001274,2]
[331439875,1720410638320,-1085.02482335,0.0001274,2]
[331439877,1720410638330,-150.0,0.00012743,2]
[331439879,1720410638339,-150.0,0.00012743,2]
[331439881,1720410638349,-150.0,0.00012755,2]
[331439883,1720410638359,-150.0,0.00012757,2]
[331439885,1720410638368,-150.0,0.0001276,2]
[331439886,1720410638377,-150.0,0.00012764,2]
[331439887,1720410638388,-150.0,0.00012767,2]
[331439888,1720410638398,-150.64423964,0.00012768,2]
[331439889,1720410638407,-150.0,0.0001277,2]
[331439890,1720410638416,-299.7934,0.0001277,2]
[331439891,1720410638426,-2500.0,0.0001278,2]
[331439892,1720410638436,-150.0,0.00012781,2]
[331439893,1720410638446,-150.0,0.00012781,2]
[331439894,1720410638456,-299.71073405,0.00012786,2]
[331439896,1720410638471,-150.0,0.00012797,2]
[331439898,1720410638480,-488.776,0.000128,2]
[331439900,1720410638490,-323.6176723,0.000128,2]
[331439902,1720410638500,-150.0,0.00012804,2]
[331439904,1720410638510,-150.0,0.00012806,2]
[331439906,1720410638521,-150.0,0.00012814,2]
[331439909,1720410638531,-299.71073402,0.00012815,2]
[331439911,1720410638540,-150.0,0.00012816,2]
[331439913,1720410638550,-150.0,0.00012821,2]
[331439914,1720410638560,-150.0,0.00012825,2]
[331439917,1720410638570,-150.0,0.00012831,2]
[331439919,1720410638580,-150.0,0.00012832,2]
[331439921,1720410638590,-150.0,0.00012835,2]
[331439923,1720410638600,-301.35765127,0.00012836,2]
[331439925,1720410638610,-150.0,0.00012839,2]
[331439927,1720410638619,-299.71073402,0.00012843,2]
[331439929,1720410638629,-1514.59732339,0.00012845,2]
[331439931,1720410638640,-150.0,0.00012845,2]
[331439933,1720410638650,-150.0,0.00012845,2]
[331439935,1720410638659,-150.0,0.00012847,2]
[331439937,1720410638669,-150.0,0.00012848,2]
[331439939,1720410638680,-150.0,0.00012849,2]
[331439941,1720410638689,-150.0,0.00012853,2]
[331439943,1720410638699,-150.0,0.00012856,2]
[331439945,1720410638709,-278.31377295,0.0001286,2]
[331439947,1720410638719,-150.0,0.00012865,2]
[331439949,1720410638729,-150.0,0.00012867,2]
[331439951,1720410638739,-67359.90965406,0.0001287,2]
[331439953,1720410638748,-1940.1547,0.0001287,2]
[331439955,1720410638759,-150.0,0.00012871,2]
[331439958,1720410638769,-299.71073402,0.00012872,2]
[331439960,1720410638779,-150.0,0.00012876,2]
[331439961,1720410638789,-177244.96775247,0.0001288,2]
[331439964,1720410638799,-150.0,0.00012886,2]
[331439966,1720410638809,-150.0,0.00012891,2]
[331439968,1720410638819,-39775.6741,0.00012899,2]
[331439970,1720410638829,-300.3502,0.00012899,2]
[331439972,1720410638839,-1000.0,0.000129,2]
[331439974,1720410638849,-21377.1684,0.000129,2]
[331439976,1720410638859,-68022.5205,0.000129,2]
[331439978,1720410638869,-535.37970773,0.000129,2]
[331439980,1720410638879,-7500.0,0.000129,2]
[331439982,1720410638891,-179.58967736,0.000129,2]
[331439984,1720410638901,-179.58967736,0.000129,2]
[331439986,1720410638911,-1663.37992849,0.000129,2]
[331439988,1720410638921,-179.58967736,0.000129,2]
[331439990,1720410638930,-179.58967736,0.000129,2]
[331439992,1720410638940,-4102.29551689,0.000129,2]
[331439994,1720410638950,-299.71073402,0.000129,2]
[331439996,1720410638960,-3987.8522409,0.000129,2]
[331439998,1720410638970,-221.71,0.00012904,3]
[331440000,1720410638981,-167.77966754,0.00012915,2]
[331440002,1720410638991,-150.0,0.00012935,2]
[331440004,1720410639002,-151.35687416,0.00012986,2]
[331440006,1720410639013,-298.21104625,0.0001299,2]
[331440008,1720410639024,-208.08516281,0.0001299,2]
[331440010,1720410639035,-8576.7124006,0.00012991,2]
[331440012,1720410639046,-3107.2267878,0.00012991,2]
[331440014,1720410639057,-142247.1519032,0.00012991,2]
[331440016,1720410639068,-232655.71727103,0.00013,2]
[331440079,1720410639829,-701.89106013,0.00013,2]
[331440080,1720410639859,-683.91734966,0.00013,2]
[331440081,1720410639871,-3912.81499996,0.00013,2]
[331440082,1720410639885,-418.0,0.00013,2]
[331440083,1720410639935,-726.22550044,0.00013,2]
[331440131,1720410641371,-2762.63396286,0.00011728,2]
[331440132,1720410641382,-432.315,0.00011728,2]
[331440133,1720410641498,-673.67079095,0.00011728,2]
[331440134,1720410641811,-5626.0543795,0.00011728,2]
[331440135,1720410641821,-1259.6020205,0.00013,2]
[331440154,1720410643736,-3189.45342976,0.00013,2]
[331440155,1720410643748,-1935.41653241,0.00013,2]
[331440156,1720410643760,-319.45945541,0.00013,2]
[331440157,1720410643796,-935.21484251,0.00013,2]
[331440158,1720410643808,-1401.6000012,0.00013,2]
[331440159,1720410644958,-503522.62089295,0.00013,2]
[331440160,1720410644970,-49525.73605037,0.00013,2]
[331440161,1720410645011,-831.02728288,0.00013,2]
[331440167,1720410646778,-430.0,0.00013,2]
[331440168,1720410646824,-7146.8997323,0.00013,2]
[331440169,1720410646835,-2293.52835284,0.00013,2]
[331440170,1720410646846,-912.85999773,0.00013,2]
[331440171,1720410646857,-1182.69224089,0.00013,2]
[331440172,1720410646872,-892.54323916,0.00013,2]
[331440173,1720410646884,-1004.84499967,0.00013,2]
[331440174,1720410646901,-54406.4391431,0.00013,2]
[331440175,1720410646924,-2110.62207728,0.00013,2]
[331440176,1720410646947,-1449.50463452,0.00013,2]
[331440177,1720410646958,-1052.88990482,0.00013,2]
[331440178,1720410646969,-577.64,0.00013,2]
[331440179,1720410646981,-386.34527195,0.00013,2]
[331440180,1720410647020,-1203.01488331,0.00013,2]
[331440181,1720410647031,-8477.6677492,0.00013,2]
[331440182,1720410647047,-4566.43182891,0.00013,2]
[331440183,1720410647066,-507.49219345,0.00013,2]
[331440184,1720410647078,-858.99079704,0.00013,2]
[331440185,1720410647090,-1357.51086529,0.00013,2]
[331440186,1720410647103,-1844.02373852,0.00013,2]
[331440187,1720410647127,-265.84776388,0.00013,2]
[331440189,1720410784539,2100.0,0.00027,120]
[331440194,1720411064790,3800.20083307,0.00011199,2]
[331440195,1720411144455,385.79,9.392e-05,2]
[331440196,1720411152980,2978.0574796,0.00011199,2]
[331440197,1720411198045,1016.47627032,0.00011199,2]
[331440198,1720411239578,833.49803925,0.00011199,2]
[331440199,1720411387103,721.36501093,0.00011199,2]
[331440201,1720411502847,319.2032419,0.00011199,2]
[331440204,1720411563206,196.02114093,0.00011199,2]
[331440206,1720411576517,186.84675823,0.00011199,2]
[331440207,1720411610619,269.73227948,0.00011199,2]
[331440212,1720411732614,-250.0,0.00011277,2]
[331440213,1720411732646,-250.0,0.00011277,2]
[331440214,1720411732678,-1721.7,0.00011277,2]
[331440215,1720411732710,-172.46,0.00011293,2]
[331440216,1720411732739,-169.74,0.00011305,2]
[331440217,1720411732768,-1000.0,0.00011305,2]
[331440218,1720411732798,-300.0,0.00011307,2]
[331440219,1720411732827,-5261.75837838,0.00011308,2]
[331440220,1720411732889,-8509.05610398,0.00011308,2]
[331440221,1720411753741,384.3,9.348e-05,2]
[331440232,1720411757735,-300.0,0.00011307,2]
[331440233,1720411757767,-9178.35266802,0.00011308,2]
[331440234,1720411757851,-950.83284962,0.00011308,2]
[331440235,1720411757883,-322.34068801,0.0001148,2]
[331440236,1720411758180,-179.46931199,0.0001148,2]
[331440237,1720411758212,-501.81,0.00011511,2]
[331440238,1720411758243,-501.81,0.00011543,2]
[331440239,1720411758274,-4705.76,0.00011574,2]
[331440240,1720411758303,-3589.50335603,0.00011574,2]
[331440241,1720411784149,-9882.9502455,0.00011318,2]
[331440242,1720411784338,-9882.9502455,0.00011318,2]
[331440243,1720411784402,-1568.6593213,0.00011318,2]
[331440246,1720411807896,-2565.4401877,0.00011318,2]
[331440247,1720411807925,-300.0,0.00011573,2]
[331440248,1720411807958,-1531.23664397,0.00011574,2]
[331440249,1720411807988,-4033.68450536,0.00011574,2]
[331440250,1720411825850,438.44980414,0.00011199,2]
[331440252,1720411831845,-107.33549464,0.00011574,2]
[331440253,1720411831854,-499.99,0.00011574,2]
[331440254,1720411831863,-392.67450536,0.00011574,2]
[331440255,1720411832413,-109.13549464,0.00011574,2]
[331440256,1720411832425,-501.81,0.00011605,2]
[331440257,1720411832436,-384.3,0.00011612,2]
[331440258,1720411832455,-501.81,0.00011637,2]
[331440259,1720411832464,-501.81,0.00011668,2]
[331440260,1720411832476,-61.83450536,0.00011688,2]
[331440261,1720411832488,-88.16549464,0.00011688,2]
[331440262,1720411832497,-300.72200673,0.000117,2]
[331440263,1720411832508,-201.08799327,0.000117,2]
[331440264,1720411832518,-501.81,0.00011731,2]
[331440265,1720411832527,-54.31813909,0.00011763,2]
[331440266,1720411832539,-447.49186091,0.00011763,2]
[331440267,1720411832548,-53.58813909,0.00011794,2]
[331440353,1720411838846,-448.22186091,0.00011794,2]
[331440355,1720411838856,-501.81,0.00011826,2]
[331440357,1720411838866,-501.81,0.00011857,2]
[331440359,1720411838875,-501.81,0.00011889,2]
[331440361,1720411838885,-501.81,0.0001192,2]
[331440363,1720411838895,-941.62,0.00011946,2]
[331440365,1720411838905,-501.81,0.00011952,2]
[331440367,1720411838914,-501.81,0.00011983,2]
[331440369,1720411838924,-501.81,0.00012015,2]
[331440371,1720411838934,-501.81,0.00012046,2]
[331440373,1720411838944,-501.81,0.00012078,2]
[331440375,1720411838954,-904.01436501,0.00012152,2]
[331440377,1720411838964,-3778.91,0.00012262,2]
[331440379,1720411838975,-3778.91,0.00012265,2]
[331440381,1720411838985,-3778.91,0.00012269,2]
[331440383,1720411838994,-3778.91,0.00012272,2]
[331440384,1720411839004,-3778.91,0.00012275,2]
[331440387,1720411839014,-3778.91,0.00012278,2]
[331440388,1720411839024,-3778.91,0.00012281,2]
[331440390,1720411839035,-3778.91,0.00012285,2]
[331440392,1720411839046,-3778.91,0.00012288,2]
[331440395,1720411839057,-3778.91,0.00012291,2]
[331440396,1720411839068,-3778.91,0.00012294,2]
[331440399,1720411839080,-3778.91,0.00012298,2]
[331440400,1720411839090,-3778.91,0.00012301,2]
[331440402,1720411839101,-3778.91,0.00012304,2]
[331440404,1720411839111,-3778.91,0.00012307,2]
[331440407,1720411839122,-3778.91,0.00012311,2]
[331440408,1720411839133,-3778.91,0.00012314,2]
[331440411,1720411839143,-3778.91,0.00012317,2]
[331440412,1720411839154,-3778.91,0.0001232,2]
[331440414,1720411839164,-3778.91,0.00012323,2]
[331440416,1720411839174,-1271.46,0.00012369,2]
[331440418,1720411839185,-278.31377295,0.00012399,2]
[331440421,1720411839196,-299.7934,0.0001257,2]
[331440423,1720411839206,-2500.0,0.0001258,2]
[331440424,1720411839216,-385.96925274,0.00012607,2]
[331440427,1720411839235,-2094.2523,0.00012632,2]
[331440429,1720411839246,-600.0,0.00012658,2]
[331440431,1720411839256,-39775.6741,0.0001267,2]
[331440433,1720411839267,-300.3502,0.0001267,2]
[331440435,1720411839277,-4844.435,0.0001267,2]
[331440437,1720411839288,-488.776,0.0001267,2]
[331440439,1720411839298,-456.51595079,0.00012677,2]
[331440441,1720411839309,-2783.1497,0.0001268,2]
[331440443,1720411839320,-420.0,0.0001271,2]
[331440446,1720411839330,-150.0,0.00012714,2]
[331440448,1720411839341,-1000.0,0.00012718,2]
[331440450,1720411839351,-150.0,0.00012726,2]
[331440452,1720411839362,-150.0,0.00012727,2]
[331440454,1720411839372,-46357.0,0.00012732,2]
[331440455,1720411839383,-456.51595075,0.00012733,2]
[331440456,1720411839394,-1094.25582717,0.0001274,2]
[331440457,1720411839404,-150.0,0.00012749,2]
[331440458,1720411839415,-150.0,0.0001275,2]
[331440459,1720411839426,-150.0,0.00012753,2]
[331440460,1720411839437,-150.0,0.00012754,2]
[331440461,1720411839448,-150.0,0.00012755,2]
[331440463,1720411839459,-150.0,0.00012761,2]
[331440465,1720411839470,-150.0,0.00012765,2]
[331440467,1720411839483,-150.0,0.00012767,2]
[331440470,1720411839494,-150.0,0.0001277,2]
[331440472,1720411839505,-963.4309,0.0001277,2]
[331440474,1720411839515,-9206.0099,0.0001277,2]
[331440476,1720411839526,-100000.0,0.0001277,2]
[331440477,1720411839537,-150.0,0.00012773,2]
[331440478,1720411839547,-150.0,0.00012775,2]
[331440479,1720411839557,-150.0,0.00012777,2]
[331440480,1720411839568,-150.0,0.00012778,2]
[331440481,1720411839578,-150.0,0.00012781,2]
[331440482,1720411839589,-150.0,0.00012785,2]
[331440483,1720411839601,-150.0,0.00012786,2]
[331440484,1720411839612,-456.51595075,0.00012789,2]
[331440485,1720411839623,-150.0,0.00012793,2]
[331440486,1720411839633,-220.51,0.00012795,2]
[331440487,1720411839643,-695.70510694,0.000128,2]
[331440488,1720411839656,-150.0,0.00012801,2]
[331440490,1720411839666,-150.0,0.00012801,2]
[331440492,1720411839678,-150.0,0.00012802,2]
[331440494,1720411839688,-150.0,0.00012802,2]
[331440496,1720411839698,-150.0,0.00012805,2]
[331440498,1720411839708,-150.0,0.00012808,2]
[331440500,1720411839718,-150.0,0.00012812,2]
[331440502,1720411839729,-150.0,0.00012813,2]
[331440504,1720411839739,-150.0,0.00012824,2]
[331440506,1720411839749,-150.0,0.00012833,2]
[331440508,1720411839759,-183.74719768,0.00012836,2]
[331440510,1720411839769,-150.0,0.00012836,2]
[331440512,1720411839779,-150.0,0.00012837,2]
[331440514,1720411839790,-1514.59732339,0.00012839,2]
[331440516,1720411839801,-456.51595075,0.00012844,2]
[331440517,1720411839811,-150.0,0.00012845,2]
[331440518,1720411839822,-150.0,0.00012846,2]
[331440519,1720411839832,-695.70510693,0.0001285,2]
[331440521,1720411839842,-301.35765127,0.0001286,2]
[331440523,1720411839853,-150.0,0.0001286,2]
[331440525,1720411839862,-150.0,0.00012861,2]
[331440527,1720411839872,-67359.90965406,0.0001287,2]
[331440529,1720411839882,-2025.34641,0.0001287,2]
[331440531,1720411839893,-150.0,0.00012877,2]
[331440533,1720411839903,-300.0,0.00012878,2]
[331440535,1720411839913,-150.0,0.00012881,2]
[331440537,1720411839923,-150.0,0.00012883,2]
[331440539,1720411839933,-358.39069558,0.0001289,2]
[331440541,1720411839943,-150.0,0.00012892,2]
[331440542,1720411839954,-150.0,0.00012893,2]
[331440543,1720411839965,-1000.0,0.000129,2]
[331440544,1720411839978,-25000.0,0.000129,2]
[331440545,1720411839990,-167.80605072,0.000129,2]
[331440546,1720411840000,-322.635,0.000129,2]
[331440547,1720411840011,-4070.7604,0.000129,2]
[331440548,1720411840022,-72271.4441,0.000129,2]
[331440549,1720411840032,-500.0,0.000129,2]
[331440550,1720411840042,-245000.0,0.000129,2]
[331440551,1720411840052,-1000.0,0.000129,2]
[331440552,1720411840062,-5402.3655,0.000129,2]
[331440553,1720411840072,-535.37970773,0.000129,2]
[331440554,1720411840082,-364.69375987,0.000129,2]
[331440555,1720411840092,-456.51595075,0.000129,2]
[331440556,1720411840102,-7500.0,0.000129,2]
[331440558,1720411840112,-150.0,0.000129,2]
[331440560,1720411840122,-946.17967956,0.000129,2]
[331440562,1720411840132,-204.47380482,0.000129,2]
[331440564,1720411840142,-695.70510693,0.000129,2]
[331440566,1720411840152,-170.99140817,0.000129,2]
[331440568,1720411840162,-170.99140811,0.000129,2]
[331440571,1720411840173,-170.99140811,0.000129,2]
[331440574,1720411840183,-170.99140811,0.000129,2]
[331440577,1720411840193,-170.99140811,0.000129,2]
[331440579,1720411840204,-170.99140811,0.000129,2]
[331440582,1720411840213,-170.99140811,0.000129,2]
[331440585,1720411840223,-3987.8522409,0.000129,2]
[331440587,1720411840237,-150.0,0.00012902,2]
[331440589,1720411840248,-150.0,0.00012905,2]
[331440591,1720411840257,-150.0,0.00012909,2]
[331440593,1720411840267,-150.0,0.00012911,2]
[331440595,1720411840280,-150.0,0.00012915,2]
[331440597,1720411840290,-155.47158257,0.00012919,2]
[331440599,1720411840300,-150.0,0.0001292,2]
[331440601,1720411840309,-150.0,0.00012924,2]
[331440603,1720411840319,-150.0,0.00012924,2]
[331440605,1720411840328,-150.0,0.00012925,2]
[331440607,1720411840338,-150.0,0.00012926,2]
[331440609,1720411840348,-150.0,0.00012928,2]
[331440611,1720411840357,-150.0,0.00012934,2]
[331440613,1720411840367,-150.0,0.00012935,2]
[331440615,1720411840377,-150.0,0.00012939,2]
[331440617,1720411840387,-150.0,0.00012948,2]
[331440619,1720411840396,-150.0,0.00012953,2]
[331440621,1720411840406,-150.0,0.00012956,2]
[331440623,1720411840415,-150.0,0.00012957,2]
[331440625,1720411840425,-150.0,0.00012958,2]
[331440627,1720411840434,-150.0,0.00012966,2]
[331440629,1720411840444,-150.0,0.00012968,2]
[331440631,1720411840453,-1000.0,0.0001297,2]
[331440633,1720411840463,-1000.0,0.0001297,2]
[331440635,1720411840473,-1000.0,0.0001297,2]
[331440637,1720411840487,-1000.0,0.0001297,2]
[331440639,1720411840496,-1917.27539911,0.0001297,2]
[331440641,1720411840506,-500.0,0.0001297,2]
[331440642,1720411840515,-500.0,0.0001297,2]
[331440643,1720411840525,-500.0,0.0001297,2]
[331440644,1720411840535,-688.16685693,0.0001297,2]
[331440645,1720411840544,-1000.0,0.0001297,2]
[331440646,1720411840554,-500.0,0.0001297,2]
[331440647,1720411840566,-150.0,0.0001298,2]
[331440648,1720411840575,-150.0,0.00012981,2]
[331440650,1720411840585,-150.0,0.00012984,2]
[331440652,1720411840599,-151.35687416,0.00012986,2]
[331440654,1720411840608,-150.64423964,0.00012988,2]
[331440656,1720411840617,-4509.9432605,0.0001299,2]
[331440658,1720411840627,-7214.4363415,0.0001299,2]
[331440660,1720411840638,-98222.58755365,0.0001299,2]
[331440699,1720411841099,-3371.18811094,0.0001299,2]
[331440700,1720411841185,-36264.61253281,0.0001299,2]
[331440701,1720411841195,-18227.5346413,0.0001299,2]
[331440702,1720411841204,-12221.38422268,0.0001299,2]
[331440703,1720411841215,-883.34381703,0.0001299,2]
[331440704,1720411841242,-380.60254469,0.0001299,2]
[331440705,1720411841252,-358.39069558,0.0001299,2]
[331440706,1720411841261,-358.39069558,0.0001299,2]
[331440707,1720411841270,-150.0,0.00012992,2]
[331440708,1720411841280,-150.0,0.00012995,2]
[331440709,1720411841289,-1988.5855981,0.00012999,2]
[331440710,1720411841300,-208.4719382,0.00012999,2]
[331440711,1720411841309,-1363.0,0.00013,2]
[331440712,1720411841319,-226451.77101658,0.00013,2]
[331440713,1720411841330,-2643.76187514,0.00013,2]
[331440714,1720411841358,-23460.57905045,0.00013,2]
[331440715,1720411841369,-5179.78453988,0.00013,2]
[331440716,1720411841456,-500.37717444,0.00013,2]
[331440721,1720411842964,-288.94,0.00013,2]
[331440722,1720411842976,-276.83,0.00013,2]
[331440723,1720411843040,-161319.00268234,0.00013,2]
[331440724,1720411843081,-7775715.75997009,0.00013,2]
[331440725,1720411844366,-686.43993092,0.00013,2]
[331440726,1720411844406,-248781.73727363,0.00013,2]
[331440727,1720411844501,-259.74876984,0.00013,2]
[331440733,1720411852055,242.68,0.00010959,2]
[331440734,1720411856467,169.74,9.89e-05,2]